bitfinex-derivatives/quotes_SOLF0:USTF0_20241215
["timestamp","ask_amount","ask_price","bid_price","bid_amount"]
[1734251857598,2.06,217.96,217.95,6.45544973]
[1734251859899,11.9392859,218.03,217.95,6.45544973]
[1734251859900,6.45544973,218.01,217.95,6.45544973]
[1734251860104,2.2943,217.98,217.95,6.45544973]
[1734251862401,6.45544973,217.99,217.9,1.5361]
[1734251862597,6.45544973,217.97,217.91,6.45544973]
[1734251862798,2.06,217.96,217.91,6.45544973]
[1734251863001,2.2947,217.95,217.91,6.45544973]
[1734251863398,2.06,217.96,217.91,6.45544973]
[1734251863607,2.06,217.96,217.9,1.5361]
[1734251864599,2.2947,217.94,217.9,1.5361]
[1734251865297,2.2947,217.94,217.91,6.45544973]
[1734251867005,5.58602264,218.02,217.91,6.45544973]
[1734251867210,6.45544973,217.99,217.91,6.45544973]
[1734251868708,2.2944,217.98,217.92,2.2949]
[1734251868910,2.06,217.97,217.92,2.2949]
[1734251869517,2.06,217.97,217.93,6.45544973]
[1734251870507,2.06,217.96,217.93,8.75024973]
[1734251874818,2.06,217.96,217.91,6.45544973]
[1734251875114,8.51544973,217.96,217.9,1.5361]
[1734251876109,2.2949,217.93,217.9,1.5361]
[1734251876419,2.06,217.92,217.9,1.5361]
[1734251876609,2.06,217.91,217.9,1.5361]
[1734251878608,2.06,217.91,217.89,6.45544973]
[1734251878814,2.06,217.91,217.88,2.2952]
[1734251879510,2.06,217.91,217.87,9.39204973]
[1734251879814,2.06,217.91,217.89,2.2952]
[1734251881716,39.03098772,218.09,217.89,6.45544973]
[1734251881911,6.45544973,218.01,217.92,6.45544973]
[1734251882116,6.45544973,218.01,217.87,2.9366]
[1734251882117,6.45544973,218.01,217.94,6.45544973]
[1734251882317,6.45544973,218.01,217.95,2.2945]
[1734251882318,2.2942,218.0,217.95,2.2945]
[1734251882519,2.06,217.99,217.95,2.2945]
[1734251883623,4.3542,217.99,217.95,2.2945]
[1734251884423,2.06,217.98,217.95,2.2945]
[1734251885523,2.2941,218.0,217.95,2.2945]
[1734251885524,2.06,217.97,217.95,2.2945]
[1734251885722,2.2941,218.0,217.95,2.2945]
[1734251885921,2.06,217.99,217.97,2.2943]
[1734251886223,2.06,217.98,217.97,2.2943]
[1734251886721,2.2939,218.02,217.97,2.2943]
[1734251886917,2.06,218.01,217.97,2.2943]
[1734251887421,2.06,218.01,217.97,8.74974973]
[1734251887616,2.06,218.01,217.98,2.2943]
[1734251887815,6.45544973,218.0,217.87,9.32791156]
[1734251888018,6.45544973,218.0,217.92,6.45544973]
[1734251888221,2.2945,217.97,217.92,8.75024973]
[1734251888427,2.06,217.96,217.92,8.75024973]
[1734251889127,2.06,217.96,217.92,2.2948]
[1734251889828,2.06,217.96,217.93,8.75014973]
[1734251891822,2.2941,218.01,217.97,2.2944]
[1734251892027,2.06,218.0,217.97,2.2944]
[1734251892326,2.06,218.0,217.95,6.45544973]
[1734251893519,8.51544973,218.0,217.93,6.45544973]
[1734251893727,6.45544973,217.98,217.91,6.45544973]
[1734251894127,8.74984973,217.98,217.91,6.45544973]
[1734251894628,8.74984973,217.98,217.93,2.2948]
[1734251897431,8.74984973,217.98,217.94,2.2947]
[1734251900035,6.45544973,217.96,217.87,9.39204973]
[1734251900225,2.06,217.95,217.88,2.2953]
[1734251900428,6.45544973,217.94,217.88,2.2953]
[1734251901727,8.75014973,217.94,217.88,2.2953]
[1734251902840,8.75014973,217.94,217.89,6.45544973]
[1734251904034,6.45544973,217.92,217.83,1.4027]
[1734251904338,66.3,218.05,217.7,6.92405134]
[1734251904339,6.45544973,217.88,217.82,6.45544973]
[1734251904536,2.06,217.87,217.8,1.4926]
[1734251904735,2.06,217.87,217.81,6.45544973]
[1734251904945,2.2956,217.86,217.81,6.45544973]
[1734251905242,2.2956,217.86,217.8,1.4926]
[1734251905436,2.2956,217.86,217.8,7.94804973]
[1734251906033,8.75104973,217.86,217.8,7.94804973]
[1734251906736,8.75104973,217.86,217.8,10.24414973]
[1734251906933,2.2959,217.83,217.69,6.39131156]
[1734251907137,8.51544973,217.82,217.76,6.45544973]
[1734251907840,2.06,217.82,217.78,6.45544973]
[1734251908039,2.06,217.81,217.78,6.45544973]
[1734251909646,13.8,218.0,217.78,6.45544973]
[1734251909843,6.45544973,217.86,217.73,5.62556775]
[1734251910143,2.06,217.85,217.8,6.45544973]
[1734251910545,2.06,217.85,217.8,8.75164973]
[1734251911435,6.45544973,217.86,217.81,2.2961]
[1734251911641,2.06,217.86,217.82,6.45544973]
[1734251912340,2.06,217.86,217.82,8.75144973]
[1734251915545,2.06,217.86,217.8,8.75154973]
[1734251915546,4.3556,217.86,217.8,8.75154973]
[1734251916253,4.3556,217.86,217.81,2.2961]
[1734251918342,2.2957,217.85,217.79,13.23434973]
[1734251918847,2.06,217.86,217.79,13.23434973]
[1734251919055,2.2957,217.84,217.79,8.75164973]
[1734251919350,6.45544973,217.83,217.76,6.45544973]
[1734251919549,2.06,217.82,217.76,6.45544973]
[1734251920551,6.45544973,217.81,217.74,6.45544973]
[1734251920753,8.75144973,217.81,217.76,2.2964]
[1734251921151,2.2963,217.79,217.74,2.2968]
[1734251921346,10.81174973,217.79,217.74,2.2968]
[1734251921549,8.51544973,217.79,217.71,6.45544973]
[1734251922255,8.51544973,217.79,217.71,12.0034585]
[1734251922550,2.06,217.79,217.75,6.45544973]
[1734251922850,2.06,217.82,217.77,6.45544973]
[1734251923054,2.06,217.83,217.77,6.45544973]
[1734251923653,4.3558,217.83,217.78,2.2963]
[1734251923852,2.06,217.83,217.77,6.45544973]
[1734251924353,6.45544973,217.82,217.75,6.45544973]
[1734251924854,10.81134973,217.82,217.77,2.2963]
[1734251925154,10.81134973,217.82,217.75,6.45544973]
[1734251925950,10.81134973,217.82,217.77,2.2964]
[1734251927047,2.06,217.81,217.77,2.2964]
[1734251927252,6.45544973,217.8,217.75,2.2965]
[1734251927450,6.45544973,217.78,217.71,12.0034585]
[1734251927650,2.2966,217.76,217.72,2.2969]
[1734251931254,2.06,217.77,217.72,2.2969]
[1734251931458,4.3564,217.77,217.72,2.2969]
[1734251933057,2.06,217.77,217.73,2.2968]
[1734251933258,2.06,217.77,217.73,6.45544973]
[1734251933455,4.3937,217.91,217.68,5.58097261]
[1734251933456,4.3937,217.91,217.75,6.45544973]
[1734251933658,2.2958,217.83,217.79,2.2962]
[1734251933865,2.06,217.82,217.79,2.2962]
[1734251934161,2.06,217.82,217.72,2.06]
[1734251934162,8.51544973,217.82,217.75,6.45544973]
[1734251934758,2.296,217.81,217.77,2.2963]
[1734251934959,6.45544973,217.8,217.73,6.45544973]
[1734251936661,8.75164973,217.8,217.75,2.2966]
[1734251938969,8.75164973,217.8,217.76,2.2964]
[1734251939573,2.2962,217.8,217.76,2.2964]
[1734251939979,10.81134973,217.82,217.76,2.2964]
[1734251941177,10.81134973,217.82,217.73,6.45544973]
[1734251941377,10.81134973,217.82,217.77,2.2963]
[1734251942380,2.06,217.81,217.77,6.45544973]
[1734251942671,2.06,217.81,217.79,6.45544973]
[1734251943082,2.06,217.81,217.8,2.296]
[1734251945582,2.06,217.86,217.79,6.45544973]
[1734251945881,2.06,217.86,217.81,6.45544973]
[1734251946280,4.3937,217.91,217.81,6.45544973]
[1734251946483,6.45544973,217.89,217.81,6.45544973]
[1734251947683,6.45544973,217.89,217.85,2.2955]
[1734251948685,6.45544973,217.89,217.84,2.2956]
[1734251950985,4.355,217.9,217.84,2.2956]
[1734251951182,6.45544973,217.89,217.84,2.2956]
[1734251953081,6.45544973,217.89,217.82,2.2957]
[1734251953286,6.45544973,217.87,217.82,2.2957]
[1734251953487,2.06,217.86,217.82,2.2957]
[1734251954884,2.06,217.86,217.79,12.08430187]
[1734251955083,2.06,217.86,217.83,2.2957]
[1734251955883,2.06,217.86,217.82,2.2958]
[1734251956091,6.45544973,217.85,217.75,2.06]
[1734251956288,8.75094973,217.85,217.78,6.45544973]
[1734251957591,8.75094973,217.85,217.8,2.296]
[1734251958294,2.2957,217.84,217.8,2.296]
[1734251958492,6.45544973,217.85,217.79,2.2961]
[1734251958693,6.45544973,217.83,217.79,2.2961]
[1734251958887,4.3559,217.82,217.76,6.45544973]
[1734251959494,2.2955,217.86,217.78,6.45544973]
[1734251959793,8.51544973,217.88,217.82,6.45544973]
[1734251960189,2.06,217.88,217.82,6.45544973]
[1734251960395,2.06,217.88,217.84,2.2956]
[1734251960894,4.3552,217.88,217.84,2.2956]
[1734251962495,2.06,217.88,217.85,2.2955]
[1734251963798,2.06,217.88,217.84,6.45544973]
[1734251964006,2.06,217.89,217.84,6.45544973]
[1734251964401,2.06,217.89,217.87,2.2953]
[1734251964597,2.06,217.89,217.84,6.45544973]
[1734251964806,2.06,217.9,217.88,2.2951]
[1734251965102,2.06,217.91,217.88,2.2951]
[1734251965298,6.45544973,217.92,217.86,6.45544973]
[1734251965601,2.06,217.91,217.86,6.45544973]
[1734251966600,2.06,217.91,217.88,2.2952]
[1734251968901,2.06,217.91,217.86,6.45544973]
[1734251968902,6.45544973,217.94,217.86,6.45544973]
[1734251969102,6.45544973,217.94,217.88,6.45544973]
[1734251969297,13.79,218.08,217.84,2.06]
[1734251969504,5.432439,218.0,217.92,6.45544973]
[1734251969705,2.06,217.99,217.96,2.2944]
[1734251969902,6.45544973,218.01,217.96,2.2944]
[1734251970101,2.06,218.0,217.94,6.45544973]
[1734251970304,2.06,218.0,217.98,2.2942]
[1734251971002,8.51544973,218.01,217.96,2.2943]
[1734251972008,2.06,218.01,217.97,2.2943]
[1734251977308,8.51544973,218.01,217.95,2.2944]
[1734251977708,10.80934973,218.01,217.94,6.45544973]
[1734251978013,6.45544973,217.99,217.92,6.45544973]
[1734251979416,6.45544973,217.99,217.95,2.2945]
[1734251980813,6.45544973,217.97,217.93,2.2946]
[1734251981120,2.06,217.96,217.89,6.45544973]
[1734251981708,2.06,217.96,217.91,6.45544973]
[1734251982512,8.51544973,217.96,217.89,6.45544973]
[1734251983513,2.06,217.96,217.91,6.45544973]
[1734251983716,6.45544973,217.98,217.91,6.45544973]
[1734251983916,2.06,217.97,217.91,6.45544973]
[1734251984110,2.06,217.97,217.92,2.2947]
[1734251984317,2.06,217.97,217.87,5.46840892]
[1734251984609,2.06,217.97,217.91,6.45544973]
[1734251985514,2.06,217.97,217.87,5.46840892]
[1734251985713,2.06,217.97,217.91,6.45544973]
[1734251985914,10.80974973,217.97,217.92,2.2947]
[1734251987016,8.51544973,217.97,217.89,6.45544973]
[1734251987411,6.45544973,217.95,217.89,6.45544973]
[1734251988216,8.74994973,217.95,217.91,2.2949]
[1734251988422,6.45544973,217.95,217.91,2.2949]
[1734251988619,2.2944,217.96,217.92,2.2948]
[1734251991614,2.2944,217.96,217.89,6.45544973]
[1734251992217,2.2944,217.96,217.91,2.2949]
[1734251992721,2.2945,217.95,217.91,2.2949]
[1734251996619,4.3544,217.97,217.92,2.2948]
[1734251997016,2.06,217.97,217.92,2.2948]
[1734251997223,2.2944,217.96,217.92,2.2948]
[1734251999825,8.74924973,218.02,217.95,6.45544973]
[1734252000124,2.06,218.01,217.95,6.45544973]
[1734252000316,2.2938,218.02,217.97,2.2943]
[1734252000517,2.06,218.01,217.97,2.2943]
[1734252001619,2.2939,218.01,217.97,2.2943]
[1734252001822,2.06,218.0,217.97,2.2943]
[1734252002527,2.2941,217.99,217.85,4.6056]
[1734252002717,8.51544973,218.0,217.92,6.45544973]
[1734252003120,2.06,218.0,217.94,6.45544973]
[1734252005627,2.06,218.0,217.96,2.2943]
[1734252007029,8.51544973,218.0,217.96,2.2943]
[1734252007723,8.51544973,218.0,217.92,6.45544973]
[1734252007929,6.45544973,217.98,217.92,6.45544973]
[1734252008224,6.45544973,217.96,217.89,6.45544973]
[1734252008427,2.06,217.95,217.89,6.45544973]
[1734252009624,4.3545,217.95,217.9,2.295]
[1734252010026,2.06,217.95,217.89,6.45544973]
[1734252010634,2.06,217.95,217.93,2.2947]
[1734252011035,2.06,217.95,217.91,6.45544973]
[1734252011231,2.06,217.95,217.91,2.2948]
[1734252011426,2.06,217.95,217.89,6.45544973]
[1734252012230,2.06,217.95,217.91,2.2948]
[1734252012435,4.3545,217.95,217.89,6.45544973]
[1734252012836,4.3545,217.95,217.9,2.2949]
[1734252013237,4.3545,217.95,217.89,6.45544973]
[1734252013433,4.3545,217.95,217.9,2.295]
[1734252013831,2.2947,217.94,217.89,6.45544973]
[1734252014028,8.75014973,217.94,217.88,2.2951]
[1734252014331,6.45544973,217.94,217.88,2.2951]
[1734252014539,2.2947,217.93,217.89,2.2951]
[1734252015234,6.45544973,217.94,217.89,2.2951]
[1734252015438,8.75004973,217.94,217.87,6.45544973]
[1734252015634,2.2946,217.94,217.9,8.75044973]
[1734252016636,2.06,217.95,217.92,6.45544973]
[1734252017137,2.06,217.97,217.92,6.45544973]
[1734252018340,2.06,217.97,217.93,2.2947]
[1734252019028,4.3543,217.97,217.93,2.2947]
[1734252019239,10.80974973,217.97,217.93,2.2947]
[1734252020835,2.294,218.0,217.93,2.2947]
[1734252021035,8.51544973,217.99,217.93,2.2947]
[1734252021530,2.2942,217.98,217.93,2.2947]
[1734252023339,2.06,217.97,217.93,2.2947]
[1734252023639,2.06,217.97,217.94,2.2946]
[1734252023840,10.80954973,217.99,217.92,6.45544973]
[1734252024141,10.80954973,217.99,217.96,2.2944]
[1734252024142,2.06,217.99,217.96,2.2944]
[1734252024441,2.06,217.99,217.92,6.45544973]
[1734252025342,6.45544973,217.98,217.94,2.2945]
[1734252027838,6.45544973,217.96,217.88,2.06]
[1734252028040,6.45544973,217.96,217.89,6.45544973]
[1734252028546,2.06,217.95,217.89,6.45544973]
[1734252029435,2.06,217.95,217.92,2.2948]
[1734252031737,2.06,217.95,217.91,2.2949]
[1734252031942,4.3545,217.95,217.91,2.2949]
[1734252033846,6.45544973,217.92,217.89,2.295]
[1734252034246,2.06,217.91,217.89,2.295]
[1734252035948,6.45544973,217.92,217.89,2.295]
[1734252036247,8.51544973,217.92,217.89,2.295]
[1734252038253,2.06,217.92,217.89,2.295]
[1734252038452,2.06,217.94,217.88,6.45544973]
[1734252039866,2.06,217.94,217.91,2.2948]
[1734252045558,8.51544973,217.94,217.91,2.2948]
[1734252045752,6.45544973,217.92,217.87,2.2953]
[1734252046056,6.45544973,217.88,217.78,6.45544973]
[1734252046256,6.45544973,217.84,217.81,2.2959]
[1734252046457,8.51544973,217.84,217.81,2.2959]
[1734252046659,8.51544973,217.84,217.78,12.03889698]
[1734252046953,8.51544973,217.84,217.77,2.9406]
[1734252047553,8.51544973,217.84,217.81,2.296]
[1734252050355,8.51544973,217.84,217.78,6.45544973]
[1734252050560,8.51544973,217.84,217.8,2.296]
[1734252052159,10.81114973,217.84,217.79,2.2962]
[1734252053364,2.296,217.81,217.76,2.2965]
[1734252053570,2.06,217.8,217.76,2.2965]
[1734252054870,2.06,217.8,217.77,2.2964]
[1734252058765,6.45544973,217.82,217.78,2.2963]
[1734252058968,5.53142579,217.87,217.77,6.45544973]
[1734252059271,4.4961,217.99,217.77,6.45544973]
[1734252059272,6.45544973,217.85,217.77,6.45544973]
[1734252059461,2.06,217.84,217.77,6.45544973]
[1734252060564,2.06,217.84,217.81,2.2959]
[1734252061371,8.51544973,217.84,217.81,2.2959]
[1734252062564,2.2953,217.88,217.82,2.2958]
[1734252062761,8.51544973,217.87,217.81,6.45544973]
[1734252062962,2.06,217.86,217.81,6.45544973]
[1734252064767,2.06,217.86,217.83,2.2957]
[1734252064977,6.45544973,217.85,217.79,6.45544973]
[1734252065369,6.45544973,217.85,217.81,2.2959]
[1734252066874,6.45544973,217.85,217.82,2.2958]
[1734252068976,6.45544973,217.87,217.79,6.45544973]
[1734252069177,6.45544973,217.87,217.83,2.2957]
[1734252069178,2.06,217.84,217.83,2.2957]
[1734252071574,2.06,217.85,217.83,2.2957]
[1734252072180,6.45544973,217.87,217.83,2.2957]
[1734252072377,2.06,217.85,217.83,2.2957]
[1734252073985,2.06,217.85,217.81,2.2959]
[1734252074181,2.06,217.85,217.79,6.45544973]
[1734252075581,2.06,217.85,217.82,2.2958]
[1734252076487,2.06,217.85,217.83,2.2958]
[1734252079187,6.45544973,217.86,217.83,2.2958]
[1734252079490,2.06,217.85,217.83,2.2958]
[1734252081690,2.06,217.89,217.83,6.45544973]
[1734252081884,6.45544973,217.91,217.85,6.45544973]
[1734252081885,2.06,217.88,217.85,6.45544973]
[1734252082788,2.06,217.88,217.87,2.2953]
[1734252083488,2.2948,217.92,217.87,2.2953]
[1734252083489,2.06,217.9,217.87,2.2953]
[1734252085686,2.2948,217.92,217.87,2.2953]
[1734252085987,2.06,217.92,217.87,6.45544973]
[1734252086183,6.45544973,217.95,217.87,6.45544973]
[1734252086389,8.51544973,217.95,217.87,6.45544973]
[1734252087188,6.45544973,217.95,217.87,6.45544973]
[1734252087388,8.51544973,217.95,217.87,6.45544973]
[1734252087588,8.51544973,217.95,217.91,2.2949]
[1734252087882,8.51544973,217.95,217.87,6.45544973]
[1734252088086,2.06,217.95,217.89,6.45544973]
[1734252089396,8.51544973,217.95,217.85,2.06]
[1734252089592,6.45544973,217.93,217.87,6.45544973]
[1734252090792,6.45544973,217.93,217.89,2.2951]
[1734252093091,8.51544973,217.95,217.9,2.295]
[1734252093795,2.06,217.95,217.9,2.295]
[1734252094089,10.80994973,217.95,217.9,2.295]
[1734252095185,2.2946,217.94,217.9,2.295]
[1734252101596,8.51544973,217.95,217.9,2.295]
[1734252101597,10.80994973,217.95,217.9,2.295]
[1734252105098,2.2946,217.94,217.9,2.295]
[1734252108402,8.51544973,217.95,217.81,1.5429]
[1734252108595,6.45544973,217.93,217.85,6.45544973]
[1734252109604,2.295,217.91,217.87,2.2953]
[1734252109805,2.06,217.91,217.87,2.2953]
[1734252111798,2.06,217.91,217.88,2.2952]
[1734252112207,2.06,217.91,217.87,6.45544973]
[1734252114301,2.06,217.91,217.89,2.2951]
[1734252118207,2.06,217.91,217.9,2.295]
[1734252120812,2.06,217.91,217.87,6.45544973]
[1734252121012,2.06,217.91,217.89,2.2952]
[1734252124114,2.06,217.91,217.9,2.2951]
[1734252126013,2.06,217.95,217.89,6.45544973]
[1734252126317,2.06,217.95,217.91,6.45544973]
[1734252126513,6.45544973,217.99,217.91,6.45544973]
[1734252126514,2.06,217.97,217.94,2.2946]
[1734252128510,2.06,217.98,217.94,2.2946]
[1734252131224,2.06,217.98,217.93,2.2948]
[1734252131225,4.3542,217.98,217.93,2.2948]
[1734252131410,6.45544973,217.97,217.93,2.2948]
[1734252132319,2.06,217.98,217.91,6.45544973]
[1734252132613,2.06,217.98,217.93,6.45544973]
[1734252133616,2.06,217.98,217.94,2.2946]
[1734252137221,6.45544973,217.97,217.88,6.3979]
[1734252137421,6.45544973,217.97,217.91,6.45544973]
[1734252138626,6.45544973,217.97,217.93,2.2947]
[1734252138924,6.45544973,217.97,217.91,6.45544973]
[1734252139120,6.45544973,217.97,217.94,2.2946]
[1734252140615,6.45544973,217.97,217.93,2.2947]
[1734252141619,6.45544973,217.95,217.9,6.45544973]
[1734252142624,6.45544973,217.95,217.92,2.2948]
[1734252144027,2.2944,217.97,217.92,2.2948]
[1734252144227,6.45544973,217.96,217.92,2.2948]
[1734252144731,2.04,217.95,217.92,2.2948]
[1734252147627,2.04,217.95,217.93,2.2947]
[1734252152434,2.04,217.95,217.94,2.2947]
[1734252154737,2.04,217.95,217.9,6.45544973]
[1734252155335,2.04,217.95,217.93,2.2947]
[1734252157930,2.04,217.95,217.93,2.2948]
[1734252159137,2.2942,217.98,217.93,2.2948]
[1734252159435,8.49544973,217.97,217.88,5.25583647]
[1734252159638,4.3345,217.96,217.91,2.2949]
[1734252162339,8.75004973,217.95,217.91,2.2949]
[1734252163237,2.2948,217.94,217.89,2.2951]
[1734252163440,6.45544973,217.93,217.89,2.2951]
[1734252163641,2.04,217.92,217.88,0.91793647]
[1734252164741,2.04,217.92,217.88,3.21323647]
[1734252166144,2.04,217.92,217.91,2.295]
[1734252168343,2.2942,217.99,217.9,6.45544973]
[1734252168547,2.04,217.98,217.92,6.45544973]
[1734252169749,2.04,217.98,217.94,2.2946]
[1734252169946,2.48424,218.03,217.94,6.45544973]
[1734252170145,2.04,218.02,217.96,6.45544973]
[1734252170343,2.04,218.02,217.97,2.2942]
[1734252170647,6.45544973,218.01,217.94,6.45544973]
[1734252171249,8.74944973,218.01,217.95,2.2944]
[1734252171446,8.74944973,218.01,217.94,6.45544973]
[1734252172645,8.74944973,218.01,217.96,2.2944]
[1734252172846,2.294,218.01,217.96,2.2944]
[1734252182258,8.49544973,218.02,217.96,6.45544973]
[1734252182660,2.04,218.02,217.96,6.45544973]
[1734252182863,2.04,218.02,217.99,2.2941]
[1734252184767,4.3338,218.02,217.98,2.2942]
[1734252186364,2.04,218.01,217.98,2.2942]
[1734252188367,2.2938,218.02,217.98,2.2942]
[1734252188568,2.04,218.01,217.98,2.2942]
[1734252190766,2.04,218.01,217.99,2.2941]
[1734252191468,2.2936,218.04,218.0,2.294]
[1734252191658,2.04,218.03,218.0,2.294]
[1734252194367,2.04,218.02,218.0,2.294]
[1734252195265,2.2934,218.07,218.0,6.45544973]
[1734252195569,2.04,218.06,218.02,6.45544973]
[1734252195868,2.2934,218.07,218.02,6.45544973]
[1734252196067,2.04,218.06,218.02,6.45544973]
[1734252197069,4.3334,218.07,218.03,2.2937]
[1734252201965,2.04,218.07,218.02,6.45544973]
[1734252202171,2.04,218.07,218.05,2.2935]
[1734252202370,2.04,218.08,218.05,2.2935]
[1734252204273,2.04,218.08,218.04,6.45544973]
[1734252204475,2.04,218.08,218.02,6.45544973]
[1734252205478,2.2933,218.07,218.02,6.45544973]
[1734252206676,2.2933,218.07,218.03,2.2937]
[1734252207179,4.3333,218.07,218.03,2.2937]
[1734252210274,2.2933,218.07,218.03,2.2937]
[1734252210578,2.04,218.07,218.03,2.2937]
[1734252211376,4.3332,218.08,218.03,2.2937]
[1734252213074,4.3332,218.08,218.03,8.74914973]
[1734252216582,4.3332,218.08,218.05,6.45544973]
[1734252217079,4.3332,218.08,218.04,2.2936]
[1734252219173,2.2933,218.07,218.03,6.45544973]
[1734252219981,4.3332,218.08,218.03,6.45544973]
[1734252220181,2.04,218.08,218.03,6.45544973]
[1734252221676,2.04,218.08,218.05,2.2935]
[1734252223781,2.293,218.1,218.06,2.2934]
[1734252223986,2.04,218.09,218.06,2.2934]
[1734252224281,2.04,218.09,218.05,6.45544973]
[1734252224481,2.04,218.09,218.07,2.2933]
[1734252225487,2.2929,218.11,218.07,2.2933]
[1734252225683,2.04,218.1,218.07,2.2933]
[1734252226379,2.2929,218.11,218.08,6.45544973]
[1734252226686,4.3329,218.11,218.08,6.45544973]
[1734252227287,2.04,218.11,218.08,8.74864973]
[1734252227484,2.2928,218.12,218.08,8.74864973]
[1734252227681,2.04,218.11,218.08,8.74864973]
[1734252228283,4.3329,218.11,218.08,6.45544973]
[1734252229285,0.43189,218.19,218.1,6.45544973]
[1734252229490,14.02913102,218.17,218.1,6.45544973]
[1734252229891,6.45544973,218.15,218.08,6.45544973]
[1734252230292,14.02913102,218.17,218.1,6.45544973]
[1734252230483,15.47663102,218.17,218.1,6.45544973]
[1734252230686,14.02913102,218.17,218.1,6.45544973]
[1734252231689,2.2927,218.13,218.1,6.45544973]
[1734252231884,4.3327,218.13,218.09,2.2931]
[1734252232091,8.49544973,218.13,218.01,2.04]
[1734252232283,8.49544973,218.13,218.06,6.45544973]
[1734252232486,8.49544973,218.13,218.0,2.04]
[1734252232685,6.45544973,218.11,218.04,6.45544973]
[1734252232982,2.2933,218.08,217.98,2.04]
[1734252233184,4.3333,218.08,218.04,6.45544973]
[1734252233387,2.04,218.08,217.93,5.63601796]
[1734252233587,2.2934,218.06,218.01,6.45544973]
[1734252233791,2.04,218.08,218.01,6.45544973]
[1734252233987,6.45544973,218.07,218.0,6.45544973]
[1734252234592,2.2935,218.05,218.0,8.74934973]
[1734252234897,2.04,218.04,218.0,8.74934973]
[1734252236390,2.04,218.04,218.0,6.45544973]
[1734252237393,2.04,218.04,217.98,6.45544973]
[1734252237591,2.04,218.04,217.93,31.13519358]
[1734252237787,6.45544973,218.03,217.96,6.45544973]
[1734252238091,2.04,218.04,217.96,6.45544973]
[1734252238289,8.49544973,218.04,217.98,6.45544973]
[1734252238597,2.2939,218.02,217.98,6.45544973]
[1734252239795,2.2937,218.03,218.0,6.45544973]
[1734252240099,2.04,218.04,218.0,6.45544973]
[1734252241599,2.04,218.04,218.0,8.74944973]
[1734252243491,2.04,218.04,218.02,6.45544973]
[1734252246497,2.04,218.04,217.99,2.294]
[1734252246701,2.04,218.04,218.0,6.45544973]
[1734252248405,2.04,218.04,217.98,6.45544973]
[1734252248706,6.45544973,218.03,217.96,8.74984973]
[1734252249501,2.294,218.0,217.96,8.74984973]
[1734252249704,2.04,217.99,217.96,8.74984973]
[1734252249904,2.04,217.99,217.96,6.45544973]
[1734252252009,4.3342,217.99,217.96,6.45544973]
[1734252257904,2.04,217.99,217.96,6.45544973]
[1734252259614,2.04,217.99,217.94,2.2946]
[1734252259813,2.2945,217.96,217.88,0.91793647]
[1734252260005,2.2945,217.96,217.92,6.45544973]
[1734252260210,2.04,217.95,217.88,0.91793647]
[1734252260406,4.3347,217.94,217.88,0.91793647]
[1734252260614,4.3347,217.94,217.89,6.45544973]
[1734252261705,2.04,217.94,217.88,0.91793647]
[1734252262215,6.45544973,217.93,217.88,0.91793647]
[1734252262416,2.04,217.94,217.88,0.91793647]
[1734252262417,2.2952,217.89,217.88,0.91793647]
[1734252262610,2.04,217.89,217.88,0.91793647]
[1734252263010,2.04,217.89,217.86,6.45544973]
[1734252264014,2.04,217.89,217.88,8.75074973]
[1734252264213,6.45544973,217.96,217.88,6.45544973]
[1734252264414,2.04,217.95,217.9,6.45544973]
[1734252264604,2.04,217.95,217.91,2.2949]
[1734252265310,4.3346,217.95,217.9,8.75044973]
[1734252270207,2.04,217.95,217.9,8.75044973]
[1734252270413,2.2946,217.94,217.9,8.75044973]
[1734252270808,5.39737747,218.02,217.92,6.45544973]
[1734252271010,2.2941,218.0,217.96,6.45544973]
[1734252271511,2.2942,217.99,217.96,6.45544973]